bitfinex/quotes_BTCUSD_20240918
["timestamp","ask_amount","ask_price","bid_price","bid_amount"]
[1726689729081,0.06,60026.0,60004.0,0.44646893]
[1726689729334,0.99988335,60034.0,59996.0,0.04944648]
[1726689729341,0.333183,60027.0,60005.0,0.333303]
[1726689729597,0.99988335,60034.0,59996.0,0.44646893]
[1726689729598,0.166595,60026.0,59996.0,0.44646893]
[1726689729857,0.99988335,60034.0,60008.0,0.166642]
[1726689729858,0.00831164,60033.0,60008.0,0.166642]
[1726689730139,0.166608,60021.0,60007.0,0.166646]
[1726689730386,0.166598,60025.0,60011.0,0.166633]
[1726689730661,0.1,60029.0,60008.0,0.00457257]
[1726689730893,0.333185,60027.0,60012.0,0.00455844]
[1726689731145,0.333168,60030.0,60012.0,0.166633]
[1726689731146,0.166595,60026.0,60012.0,0.166633]
[1726689731386,0.166595,60026.0,60013.0,0.00455837]
[1726689731615,0.333168,60030.0,60013.0,0.00455837]
[1726689731616,0.1,60030.0,60013.0,0.00455837]
[1726689731849,0.1666,60024.0,60013.0,0.00455837]
[1726689732085,0.166595,60026.0,60014.0,0.00455533]
[1726689733018,0.166597,60025.0,60014.0,0.00455533]
[1726689733277,0.16041566,60017.0,60014.0,0.00455533]
[1726689733517,0.99988335,60025.0,59984.0,0.0782]
[1726689733518,0.49422089,60015.0,59984.0,0.0782]
[1726689733756,0.166647,60007.0,59995.0,0.166679]
[1726689734044,0.16201215,60009.0,59984.0,0.0782]
[1726689734045,0.16298424,60006.0,59994.0,0.166682]
[1726689734285,0.166672,59999.0,59976.0,0.0333]
[1726689734513,0.16305367,59995.0,59975.0,0.0333]
[1726689734741,0.16305367,59995.0,59986.0,0.166704]
[1726689734975,0.16305367,59995.0,59987.0,0.166701]
[1726689735209,0.16305367,59995.0,59986.0,0.166704]
[1726689735449,0.16305367,59989.0,59967.0,0.0333]
[1726689735694,0.99988335,59992.0,59970.0,0.000825]
[1726689735695,0.166707,59986.0,59970.0,0.000825]
[1726689735932,0.16305367,59988.0,59970.0,0.000825]
[1726689735933,0.32976767,59983.0,59971.0,0.333491]
[1726689736170,0.16305367,59983.0,59972.0,0.0334316]
[1726689736402,0.16672,59981.0,59973.0,0.166739]
[1726689736636,0.16305367,59980.0,59972.0,0.0334316]
[1726689736877,0.16305367,59980.0,59979.0,0.500175]
[1726689736878,0.18921687,59980.0,59979.0,0.500175]
[1726689737150,0.16305367,59980.0,59979.0,0.833625]
[1726689737386,0.99988335,59992.0,59991.0,0.166691]
[1726689737621,1.16293702,59992.0,59991.0,0.166691]
[1726689737885,1.16293702,59992.0,59989.0,0.166694]
[1726689738118,0.16305367,59991.0,59990.0,0.500082]
[1726689738418,0.16305367,59991.0,59972.0,0.00854258]
[1726689738624,0.16305367,59984.0,59972.0,0.333486]
[1726689738865,0.16305367,59984.0,59964.0,0.77999693]
[1726689739094,0.16305367,59984.0,59978.0,0.333455]
[1726689739095,0.99988335,59983.0,59978.0,0.333455]
[1726689739333,0.99988335,59983.0,59981.0,0.166719]
[1726689739334,0.16305367,59982.0,59981.0,0.166719]
[1726689739572,0.16305367,59982.0,59971.0,0.333491]
[1726689739800,0.77986493,59989.0,59968.0,0.333507]
[1726689739801,0.49649267,59981.0,59968.0,0.333507]
[1726689740030,0.166728,59978.0,59968.0,0.333507]
[1726689740267,0.16305367,59977.0,59976.0,0.166733]
[1726689740510,0.16305367,59977.0,59976.0,0.5168723]
[1726689740762,0.02616478,59994.0,59983.0,0.333426]
[1726689740998,0.02616478,59994.0,59986.0,0.166704]
[1726689740999,0.16305367,59990.0,59986.0,0.166704]
[1726689741240,0.16305367,59990.0,59976.0,0.0166733]
[1726689741490,0.16305367,59990.0,59970.0,0.44729393]
[1726689741491,0.99988335,59985.0,59970.0,0.000825]
[1726689741770,0.16305367,59990.0,59970.0,0.000825]
[1726689742022,0.99988335,59989.0,59980.0,0.333444]
[1726689742288,0.99988335,59989.0,59970.0,0.44729393]
[1726689742751,0.99988335,59989.0,59987.0,0.166701]
[1726689743002,1.16658135,59989.0,59982.0,0.166715]
[1726689743547,0.333434,59982.0,59970.0,0.000825]
[1726689744008,0.166736,59975.0,59970.0,0.000825]
[1726689744012,0.16305367,59972.0,59970.0,0.000825]
[1726689744257,0.32980067,59971.0,59970.0,0.000825]
[1726689744509,1.33028267,59971.0,59970.0,0.000725]
[1726689744766,1.33028267,59971.0,59961.0,0.0055007]
[1726689744767,0.833985,59953.0,59951.0,0.000824]
[1726689745050,0.833985,59953.0,59952.0,0.000724]
[1726689745051,1.8771016,59953.0,59952.0,0.000724]
[1726689745560,1.91032896,59953.0,59952.0,0.000724]
[1726689745801,1.33063267,59953.0,59952.0,0.000724]
[1726689746307,0.66344467,59953.0,59952.0,0.000724]
[1726689746544,0.16305367,59953.0,59952.0,0.000724]
[1726689747259,1.1099136,59953.0,59952.0,0.000724]
[1726689747504,0.934,59952.0,59951.0,0.000824]
[1726689747736,1.09705367,59952.0,59951.0,0.000824]
[1726689747990,0.166844,59936.0,59925.0,0.0032332]
[1726689748234,1.4437446,59936.0,59935.0,0.0053007]
[1726689748487,1.4437446,59936.0,59925.0,0.0032332]
[1726689748488,0.500616,59926.0,59925.0,0.0032332]
[1726689748735,1.7776266,59926.0,59925.0,0.0031332]
[1726689749206,1.7776266,59926.0,59925.0,0.0030332]
[1726689749455,0.500725,59913.0,59912.0,0.000824]
[1726689749700,0.66377867,59913.0,59912.0,0.000724]
[1726689749979,0.66377867,59913.0,59912.0,0.000624]
[1726689750230,0.66377867,59913.0,59892.0,0.000824]
[1726689750231,0.6095226,59913.0,59892.0,0.000824]
[1726689750497,0.6095226,59913.0,59856.0,0.84173493]
[1726689750498,0.167001,59880.0,59871.0,0.167023]
[1726689750739,0.0905,59882.0,59862.0,0.00402]
[1726689750740,0.44646893,59875.0,59862.0,0.00402]
[1726689750983,0.44646893,59875.0,59872.0,0.00479325]
[1726689750984,0.167021,59873.0,59872.0,0.00479325]
[1726689751226,0.44646893,59875.0,59862.0,0.00402]
[1726689751474,0.334036,59874.0,59862.0,0.00402]
[1726689751710,0.44646893,59875.0,59862.0,0.00402]
[1726689751711,0.167039,59866.0,59862.0,0.00402]
[1726689751951,0.16305367,59865.0,59862.0,0.00402]
[1726689752559,0.167048,59863.0,59862.0,0.00402]
[1726689752830,0.61354493,59853.0,59852.0,0.0032332]
[1726689753103,0.61354493,59853.0,59828.0,0.0074532]
[1726689753104,0.44646893,59852.0,59844.0,0.03778157]
[1726689753318,0.16305367,59851.0,59845.0,0.01270533]
[1726689753557,0.167098,59845.0,59844.0,0.03778157]
[1726689753800,0.16305367,59845.0,59844.0,0.03778157]
[1726689754990,0.33015167,59845.0,59844.0,0.03778157]
[1726689755246,0.99854367,59845.0,59844.0,0.03778157]
[1726689755515,0.99854367,59845.0,59844.0,0.52045792]
[1726689755516,0.02622236,59845.0,59844.0,0.52045792]
[1726689755772,0.02622236,59845.0,59844.0,0.17579043]
[1726689756023,0.5847766,59858.0,59844.0,0.17579043]
[1726689756024,0.2506496,59851.0,59844.0,0.01915492]
[1726689756529,0.16305367,59850.0,59844.0,0.01915492]
[1726689756789,0.16305367,59850.0,59849.0,0.167087]
[1726689757015,0.2506496,59858.0,59849.0,0.0501277]
[1726689757266,0.16305367,59857.0,59845.0,0.00334141]
[1726689757519,0.2506496,59865.0,59864.0,0.167045]
[1726689757773,0.2506496,59865.0,59864.0,0.501135]
[1726689757774,0.16305367,59865.0,59864.0,0.501135]
[1726689758247,1.00226344,59877.0,59849.0,0.44646893]
[1726689758500,0.16305367,59876.0,59856.0,0.44646893]
[1726689758725,0.16305367,59876.0,59875.0,0.167014]
[1726689759218,0.16305367,59876.0,59875.0,0.501043]
[1726689759471,1.00226344,59884.0,59882.0,0.166992]
[1726689759725,1.00226344,59884.0,59875.0,0.0046212]
[1726689760127,0.167014,59875.0,59856.0,0.334133]
[1726689760128,0.16305367,59876.0,59851.0,0.334159]
[1726689760386,1.00226344,59884.0,59855.0,0.167068]
[1726689760387,0.6095226,59867.0,59855.0,0.167068]
[1726689760632,0.6095226,59867.0,59843.0,0.081]
[1726689760633,0.167056,59860.0,59851.0,0.33416]
[1726689760895,0.33011367,59859.0,59852.0,0.033416]
[1726689761160,0.44646893,59867.0,59844.0,0.01998192]
[1726689761161,0.16305367,59857.0,59844.0,0.01998192]
[1726689761401,1.61178604,59852.0,59844.0,0.01998192]
[1726689761642,0.16305367,59849.0,59844.0,0.01998192]
[1726689761895,0.99854367,59845.0,59844.0,0.01998192]
[1726689762161,1.33273967,59845.0,59844.0,0.01998192]
[1726689762445,0.0824,59844.0,59828.0,0.0074532]
[1726689762706,0.0824,59844.0,59800.0,0.338443]
[1726689762707,0.94800593,59816.0,59800.0,0.004]
[1726689762944,0.94800593,59816.0,59815.0,0.0031332]
[1726689762945,0.835895,59816.0,59815.0,0.0031332]
[1726689763207,0.835895,59816.0,59800.0,0.004]
[1726689763208,1.170333,59812.0,59800.0,0.004]
[1726689763445,1.170333,59812.0,59791.0,0.0002]
[1726689763446,0.501738,59792.0,59791.0,0.0001]
[1726689763692,0.99928367,59792.0,59791.0,0.0001]
[1726689763927,0.16305367,59792.0,59791.0,0.0001]
[1726689764417,0.16305367,59792.0,59791.0,0.167349]
[1726689764660,0.16305367,59792.0,59791.0,0.5185819]
[1726689764907,0.16305367,59792.0,59791.0,0.0001]
[1726689765171,0.16305367,59792.0,59791.0,0.501847]
[1726689765419,0.25087178,59808.0,59791.0,0.0001]
[1726689765682,0.25087178,59808.0,59807.0,0.167204]
[1726689765921,0.25087178,59808.0,59807.0,0.501613]
[1726689766166,0.25087178,59808.0,59791.0,0.0001]
[1726689766414,0.44646893,59802.0,59791.0,0.0001]
[1726689767116,0.16305367,59794.0,59791.0,0.0001]
[1726689767361,1.00321866,59801.0,59791.0,0.0001]
[1726689767362,0.44646893,59796.0,59791.0,0.0001]
[1726689767631,0.16305367,59792.0,59791.0,0.0001]
[1726689767867,0.39125193,59792.0,59791.0,0.0001]
[1726689768112,0.39125193,59792.0,59786.0,0.001714]
[1726689768113,0.16726,59787.0,59786.0,0.001714]
[1726689768365,0.7767826,59787.0,59786.0,0.001714]
[1726689768606,0.7767826,59787.0,59786.0,0.001614]
[1726689768607,1.1113026,59787.0,59786.0,0.001614]
[1726689768852,0.7767826,59787.0,59786.0,0.001614]
[1726689769090,0.6095226,59787.0,59786.0,0.001614]
[1726689769348,0.501798,59785.0,59784.0,0.000824]
[1726689769600,0.836412,59779.0,59778.0,0.0031332]
[1726689769840,0.7768046,59779.0,59778.0,0.0031332]
[1726689770133,0.18930633,59779.0,59778.0,0.0031332]
[1726689770368,0.16305367,59779.0,59778.0,0.1704182]
[1726689770604,0.16305367,59779.0,59778.0,0.85680202]
[1726689770849,0.27717624,59794.0,59793.0,0.50173]
[1726689771093,0.41398001,59794.0,59793.0,0.167243]
[1726689771334,0.41398001,59794.0,59793.0,0.50689845]
[1726689771564,0.16305367,59794.0,59793.0,0.17241145]
[1726689771798,0.16305367,59794.0,59793.0,0.8920753]
[1726689772325,0.02624577,59812.0,59811.0,0.167193]
[1726689772574,0.25092634,59807.0,59806.0,0.501621]
[1726689772820,0.16305367,59807.0,59806.0,1.170449]
[1726689773070,0.16305367,59807.0,59806.0,0.501621]
[1726689773333,0.16305367,59807.0,59806.0,0.8861971]
[1726689773570,0.16305367,59807.0,59793.0,0.05068985]
[1726689773571,0.16305367,59807.0,59798.0,0.334455]
[1726689773802,0.16305367,59806.0,59793.0,0.05068985]
[1726689774042,0.16305367,59806.0,59799.0,0.334451]
[1726689774275,0.16305367,59806.0,59786.0,0.335341]
[1726689774276,0.16305367,59806.0,59805.0,0.50163]
[1726689774516,0.16305367,59806.0,59805.0,0.16721]
[1726689774988,0.16305367,59806.0,59805.0,1.17047]
[1726689775279,1.00330254,59821.0,59820.0,0.167168]
[1726689775516,1.16635621,59821.0,59820.0,0.501504]
[1726689775755,1.16635621,59821.0,59809.0,0.0802]
[1726689775756,1.00330254,59834.0,59833.0,0.501394]
[1726689775995,1.00330254,59834.0,59833.0,0.835657]
[1726689775996,1.16635621,59834.0,59833.0,0.835657]
[1726689776239,1.16635621,59834.0,59833.0,1.25815941]
[1726689776240,0.16305367,59834.0,59833.0,1.25815941]
[1726689776534,0.16305367,59834.0,59833.0,1.17459371]
[1726689777022,0.44646893,59854.0,59853.0,0.167076]
[1726689777271,0.44646893,59860.0,59833.0,0.00467371]
[1726689777520,1.00233042,59855.0,59853.0,0.00454242]
[1726689777755,1.00233042,59855.0,59826.0,0.0333]
[1726689778007,0.44646893,59860.0,59817.0,0.336349]
[1726689778008,0.16305367,59854.0,59849.0,0.167085]
[1726689778269,0.16305367,59854.0,59849.0,0.167087]
[1726689778270,1.00233042,59850.0,59849.0,0.167087]
[1726689778517,1.00233042,59850.0,59827.0,0.4273563]
[1726689778518,0.16305367,59854.0,59853.0,0.501228]
[1726689778756,0.16305367,59854.0,59843.0,0.0817]
[1726689778757,1.00233042,59856.0,59843.0,0.0817]
[1726689778988,1.00233042,59862.0,59843.0,0.0817]
[1726689779230,1.00233042,59850.0,59843.0,0.0817]
[1726689779488,1.00233042,59856.0,59843.0,0.0817]
[1726689779740,1.00233042,59856.0,59850.0,0.167082]
[1726689779971,0.16305367,59855.0,59850.0,0.2172088]
[1726689780252,0.16305367,59855.0,59853.0,0.167074]
[1726689780510,1.00233042,59873.0,59846.0,0.44646893]
[1726689780748,1.00233042,59873.0,59869.0,0.501093]
[1726689780990,1.00233042,59873.0,59869.0,0.835155]
[1726689781493,1.00233042,59873.0,59841.0,0.336217]
[1726689781755,1.44879935,59879.0,59869.0,0.167031]
[1726689781756,0.16315367,59870.0,59869.0,0.167031]
[1726689782006,0.0001,59870.0,59869.0,0.167031]
[1726689782250,0.0001,59870.0,59858.0,0.334119]
[1726689782490,0.44646893,59862.0,59849.0,0.334173]
[1726689782729,0.4998257,59869.0,59843.0,0.0817]
[1726689782974,0.0001,59870.0,59835.0,0.0333]
[1726689782975,0.44646893,59848.0,59835.0,0.0333]
[1726689783213,0.44646893,59854.0,59847.0,0.167092]
[1726689783468,0.44566893,59854.0,59843.0,0.334204]
[1726689783718,0.44566893,59854.0,59841.0,0.334218]
[1726689783955,0.44646893,59847.0,59830.0,0.0846]
[1726689784185,0.334102,59862.0,59843.0,0.167102]
[1726689784186,0.16305367,59846.0,59843.0,0.167102]
[1726689784428,0.16305367,59846.0,59831.0,0.01213603]
[1726689784657,0.16305367,59846.0,59845.0,0.167098]
[1726689784896,0.16305367,59846.0,59845.0,0.83549]
[1726689785136,0.16305367,59846.0,59831.0,0.01213603]
[1726689785393,0.16305367,59846.0,59830.0,0.0846]
[1726689785394,0.16305367,59846.0,59843.0,0.167103]
[1726689785643,0.001642,59855.0,59818.0,0.0818]
[1726689785644,0.6095226,59844.0,59818.0,0.0818]
[1726689785873,0.6095226,59844.0,59795.0,0.06]
[1726689785874,0.49735767,59826.0,59806.0,0.0833]
[1726689786114,0.16305367,59823.0,59808.0,0.334402]
[1726689786357,0.16305367,59823.0,59809.0,0.00334369]
[1726689786591,0.16305367,59823.0,59809.0,0.00334351]
[1726689787064,1.00233042,59831.0,59821.0,0.501495]
[1726689787065,1.00233042,59822.0,59821.0,0.501495]
[1726689787333,1.00233042,59822.0,59821.0,0.5516445]
[1726689787565,1.00233042,59839.0,59838.0,0.167117]
[1726689787801,1.00233042,59839.0,59838.0,1.169822]
[1726689788055,0.16305367,59839.0,59838.0,0.0864]
[1726689788292,1.00233042,59856.0,59838.0,0.0864]
[1726689788528,1.00233042,59856.0,59839.0,0.01198164]
[1726689789020,1.00233042,59856.0,59839.0,0.00864]
[1726689789300,0.334152,59853.0,59839.0,0.00864]
[1726689789545,0.6095226,59844.0,59831.0,0.167136]
[1726689789781,0.167125,59836.0,59831.0,0.167136]
[1726689790041,0.6095226,59844.0,59834.0,0.167129]
[1726689790042,0.16305367,59835.0,59834.0,0.167129]
[1726689790294,0.16305367,59835.0,59834.0,0.5515265]
[1726689790561,0.16305367,59835.0,59834.0,0.8857845]
[1726689790805,0.16305367,59835.0,59824.0,0.0333]
[1726689791091,1.00233042,59842.0,59819.0,0.16717]
[1726689791092,0.16305367,59828.0,59819.0,0.16717]
[1726689791302,0.16305367,59828.0,59805.0,0.0829]
[1726689791550,0.167164,59822.0,59815.0,0.33436]
[1726689791796,0.334305,59826.0,59805.0,0.0829]
[1726689791797,0.49738767,59821.0,59812.0,0.167188]
[1726689792062,0.16305367,59821.0,59805.0,0.0829]
[1726689792325,0.16305367,59821.0,59820.0,0.167168]
[1726689792575,0.16305367,59821.0,59805.0,0.0829]
[1726689792576,0.78080693,59820.0,59810.0,0.334389]
[1726689792829,0.78080693,59820.0,59805.0,0.0829]
[1726689792830,0.16305367,59819.0,59805.0,0.0829]
[1726689793093,0.16713,59834.0,59828.0,0.167144]
[1726689793342,1.00233042,59835.0,59828.0,0.167144]
[1726689793343,1.00233042,59829.0,59828.0,0.501436]
[1726689793614,1.00233042,59829.0,59805.0,0.0829]
[1726689793615,1.16538409,59829.0,59805.0,0.0829]
[1726689793850,1.00233042,59835.0,59805.0,0.0829]
[1726689793851,0.16305367,59828.0,59827.0,0.501445]
[1726689794641,0.16305367,59828.0,59827.0,0.167148]
[1726689794912,0.04754818,59889.0,59827.0,0.167148]
[1726689794913,0.167104,59843.0,59827.0,0.835742]
[1726689795134,0.167086,59850.0,59841.0,0.835547]
[1726689795455,1.00233042,59848.0,59847.0,0.334185]
[1726689795646,1.00233042,59848.0,59847.0,0.167092]
[1726689795898,0.16708,59852.0,59847.0,0.167092]
[1726689796153,0.16305367,59851.0,59826.0,0.023]
[1726689796417,0.16305367,59851.0,59848.0,0.25067473]
[1726689796661,1.00251464,59849.0,59835.0,0.334248]
[1726689796899,1.00251464,59849.0,59827.0,0.17670565]
[1726689796900,1.00251464,59861.0,59854.0,0.167073]
[1726689797402,1.00251464,59861.0,59848.0,0.167089]
[1726689797636,0.16305367,59854.0,59846.0,0.334189]
[1726689797873,0.16305367,59854.0,59853.0,0.167076]
[1726689798112,1.00251464,59868.0,59847.0,0.0334189]
[1726689798352,1.00251464,59862.0,59854.0,0.501219]
[1726689799051,1.00251464,59868.0,59854.0,0.501219]
[1726689799309,1.00251464,59867.0,59854.0,1.169511]
[1726689799551,0.25060772,59866.0,59854.0,1.169511]
[1726689799798,0.0001,59870.0,59854.0,1.169511]
[1726689799799,0.0001,59870.0,59854.0,1.68971067]
[1726689800043,0.0001,59870.0,59869.0,0.501093]
[1726689800287,0.0001,59870.0,59869.0,1.526279]
[1726689800570,0.0001,59870.0,59869.0,1.80783192]
[1726689800810,0.0077954,59875.0,59874.0,1.526153]
[1726689801045,0.0077954,59875.0,59874.0,2.05654067]
[1726689801283,0.0077954,59875.0,59874.0,1.76790667]
[1726689801517,0.0077954,59875.0,59874.0,1.247819]
[1726689801737,0.0077954,59875.0,59874.0,1.26506082]
[1726689802214,0.0077954,59875.0,59870.0,0.334053]
[1726689802458,0.167026,59871.0,59861.0,0.0843]
[1726689802690,0.16305367,59871.0,59868.0,0.25060772]
[1726689802929,0.16305367,59871.0,59861.0,0.0843]
[1726689803197,0.0077954,59875.0,59863.0,0.25060772]
[1726689803198,0.16305367,59870.0,59863.0,0.25060772]
[1726689803441,0.16305367,59870.0,59869.0,0.334062]
[1726689803676,0.0077954,59875.0,59848.0,0.0805]
[1726689803677,0.0077954,59875.0,59874.0,0.167017]
[1726689803931,0.17084907,59875.0,59863.0,0.334091]
[1726689804168,0.17084907,59875.0,59866.0,0.25060772]
[1726689804169,0.167022,59873.0,59866.0,0.25060772]
[1726689804399,0.0077954,59875.0,59867.0,0.334073]
[1726689804400,0.16305367,59872.0,59867.0,0.334073]
[1726689804643,0.16305367,59872.0,59865.0,0.334084]
[1726689804869,0.33007667,59872.0,59867.0,0.167035]
[1726689805098,0.33007667,59872.0,59857.0,0.334124]
[1726689805099,0.16305367,59872.0,59857.0,0.334124]
[1726689805340,0.16305367,59872.0,59859.0,0.25060772]
[1726689805570,0.167053,59861.0,59858.0,0.0334124]
[1726689805821,0.16305367,59861.0,59854.0,0.334146]
[1726689806118,0.16305367,59861.0,59857.0,0.167062]
[1726689806355,0.16305367,59861.0,59848.0,0.0805]
[1726689806356,0.44646893,59887.0,59849.0,0.00334083]
[1726689806604,1.0022467,59869.0,59864.0,0.334088]
[1726689806839,1.0022467,59869.0,59850.0,0.21608465]
[1726689806840,0.16305367,59868.0,59866.0,0.167039]
[1726689807096,0.16305367,59868.0,59850.0,0.05303098]
[1726689807337,0.16305367,59868.0,59860.0,0.167055]
[1726689807574,0.16305367,59868.0,59860.0,0.334112]
[1726689807816,1.0022467,59867.0,59848.0,0.0805]
[1726689808039,0.16305367,59866.0,59860.0,0.167055]
[1726689808261,0.16305367,59866.0,59848.0,0.0805]
[1726689808497,0.16305367,59866.0,59849.0,0.0414692]
[1726689808720,0.16305367,59866.0,59855.0,0.334136]
[1726689808947,1.0022467,59865.0,59861.0,0.167052]
[1726689809185,1.3362847,59874.0,59853.0,0.167074]
[1726689809186,1.16530037,59864.0,59853.0,0.167074]
[1726689809412,1.3362847,59874.0,59849.0,0.0414692]
[1726689809413,0.334127,59858.0,59849.0,0.0414692]
[1726689809640,0.6095226,59861.0,59850.0,0.334166]
[1726689809641,0.16305367,59857.0,59850.0,0.334166]
[1726689809882,0.16305367,59857.0,59843.0,0.334205]
[1726689809883,0.334161,59852.0,59843.0,0.334205]
[1726689810106,0.44646893,59867.0,59828.0,0.432289]
[1726689810107,0.16305367,59851.0,59850.0,0.501252]
[1726689810368,0.44646893,59867.0,59834.0,0.00875548]
[1726689810600,1.01092029,59874.0,59854.0,0.334141]
[1726689810601,1.0022467,59861.0,59854.0,0.334141]
[1726689810824,0.16305367,59860.0,59859.0,0.167059]
[1726689811135,1.0022467,59867.0,59851.0,0.334161]
[1726689811370,0.02785425,59868.0,59865.0,0.16704]
[1726689811371,0.16305367,59866.0,59865.0,0.16704]
[1726689811595,0.16305367,59866.0,59865.0,0.501127]
[1726689812315,0.00164,59868.0,59867.0,0.167036]
[1726689812559,0.00164,59868.0,59867.0,1.28165093]
[1726689812790,0.00164,59868.0,59867.0,2.2216506]
[1726689813031,0.00164,59868.0,59867.0,1.92111664]
[1726689813272,0.00164,59868.0,59867.0,1.40098997]
[1726689813513,0.00164,59868.0,59867.0,1.42398997]
[1726689813732,0.0077954,59875.0,59874.0,1.169119]
[1726689814431,0.0077954,59875.0,59874.0,2.05654067]
[1726689814663,0.0077954,59875.0,59874.0,1.5698691]
[1726689815159,0.25052401,59899.0,59898.0,0.16695]
[1726689815382,0.25052401,59899.0,59898.0,0.50085]
[1726689815609,0.333848,59908.0,59898.0,0.3339]
[1726689815839,0.333848,59908.0,59899.0,0.33389]
[1726689815840,0.166929,59906.0,59899.0,0.33389]
[1726689816090,0.001642,59905.0,59902.0,0.166938]
[1726689816323,0.168573,59905.0,59900.0,0.066779]
[1726689816550,0.16305367,59904.0,59901.0,0.333883]
[1726689816775,0.16305367,59904.0,59901.0,0.16694]
[1726689817003,0.16305367,59904.0,59903.0,0.500809]
[1726689817238,0.16305367,59904.0,59903.0,0.166936]
[1726689817461,0.16305367,59904.0,59902.0,0.21279397]
[1726689817697,0.16305367,59904.0,59903.0,0.166936]
[1726689817961,0.16305367,59904.0,59902.0,0.04585597]
[1726689817962,0.16305367,59904.0,59902.0,0.21279197]
[1726689818207,0.16305367,59904.0,59903.0,0.0546684]
[1726689818729,0.16305367,59904.0,59878.0,0.0333]
[1726689818971,0.16305367,59904.0,59901.0,0.166941]
[1726689819217,0.16305367,59904.0,59901.0,0.16694]
[1726689819459,0.16305367,59904.0,59881.0,0.16639239]
[1726689819460,0.16305367,59904.0,59881.0,0.16305367]
[1726689819706,0.16305367,59904.0,59901.0,0.16694]
[1726689819931,0.16294117,59904.0,59903.0,0.500809]
[1726689820394,0.001642,59905.0,59904.0,1.168534]
[1726689823409,0.001642,59905.0,59904.0,0.834667]
[1726689823634,0.001642,59905.0,59904.0,1.24800281]
[1726689823868,0.001642,59905.0,59904.0,0.24640181]
[1726689824316,0.001642,59905.0,59904.0,0.07946881]
[1726689824540,0.001642,59905.0,59904.0,0.834667]
[1726689824753,0.001642,59905.0,59904.0,1.17187235]
[1726689825198,0.001642,59905.0,59904.0,1.50573935]
[1726689825917,0.001642,59905.0,59904.0,1.51427781]
[1726689826144,0.0069826,59905.0,59904.0,1.51427781]
[1726689827151,0.001654,59913.0,59912.0,1.168377]
[1726689827639,0.001654,59913.0,59912.0,1.502199]
[1726689828340,0.0057827,59917.0,59916.0,0.3338]
[1726689828568,0.00164,59928.0,59918.0,1.30394093]
[1726689828818,0.00164,59928.0,59918.0,2.2345726]
[1726689829053,0.00164,59928.0,59927.0,1.168086]
[1726689829582,0.00164,59928.0,59927.0,1.501825]
[1726689829816,0.00164,59928.0,59927.0,1.53335657]
[1726689830035,0.00164,59928.0,59927.0,2.03014924]
[1726689830473,0.00164,59928.0,59927.0,1.69641024]
[1726689830689,0.00164,59928.0,59927.0,1.17661757]
[1726689831125,0.00164,59928.0,59927.0,1.168086]
[1726689832055,0.16469367,59928.0,59923.0,0.333761]
[1726689832272,0.16305367,59927.0,59925.0,0.25039855]
[1726689832491,0.16305367,59927.0,59910.0,0.34260074]
[1726689832721,0.16305367,59927.0,59926.0,0.166872]
[1726689832935,0.16305367,59927.0,59923.0,0.333758]
[1726689833152,0.16305367,59927.0,59911.0,0.03426007]
[1726689833397,0.16305367,59927.0,59910.0,0.00877174]
[1726689833630,0.00164,59928.0,59927.0,0.500608]
[1726689833846,0.00164,59928.0,59927.0,0.834347]
[1726689834077,0.00164,59928.0,59927.0,1.168086]
[1726689834291,0.00164,59928.0,59927.0,0.834347]
[1726689834506,0.00164,59928.0,59927.0,0.9511575]
[1726689835173,0.16469367,59928.0,59927.0,0.1168105]
[1726689835389,0.00164,59928.0,59927.0,0.166869]
[1726689835620,0.00164,59928.0,59927.0,0.834347]
[1726689835852,0.00164,59928.0,59927.0,0.166869]
[1726689836082,0.00164,59928.0,59920.0,0.333774]
[1726689836317,0.16469367,59928.0,59921.0,0.0333774]
[1726689836536,0.16305367,59927.0,59924.0,0.166877]
[1726689836774,0.49679767,59927.0,59921.0,0.0333774]
[1726689836989,0.49679767,59927.0,59922.0,0.03671544]
[1726689836990,0.16305367,59927.0,59922.0,0.03671544]
[1726689837211,0.16305367,59927.0,59924.0,0.166877]
[1726689837466,0.168508,59928.0,59927.0,0.500608]
[1726689837467,0.00164,59928.0,59927.0,0.500608]
[1726689837703,0.16469367,59928.0,59927.0,0.05039453]
[1726689837941,0.16469367,59928.0,59921.0,0.333772]
[1726689838192,0.16305367,59927.0,59912.0,0.33382]
[1726689838411,0.333759,59924.0,59914.0,0.333808]
[1726689838644,0.333759,59924.0,59913.0,0.033382]
[1726689838645,0.333774,59921.0,59913.0,0.033382]
[1726689838900,0.333759,59924.0,59904.0,0.000819]
[1726689838901,0.16305367,59920.0,59904.0,0.000819]
[1726689839134,0.16305367,59920.0,59908.0,0.33384]
[1726689839135,0.166893,59919.0,59908.0,0.33384]
[1726689839370,0.166893,59919.0,59914.0,0.166904]
[1726689839371,0.16305367,59918.0,59914.0,0.166904]
[1726689839811,0.16305367,59918.0,59911.0,0.333828]
[1726689840028,0.16305367,59918.0,59917.0,0.166897]
[1726689840248,0.16305367,59918.0,59917.0,0.5173817]
[1726689840532,1.0012265,59929.0,59926.0,0.16687]
[1726689840755,1.0012265,59929.0,59927.0,0.166869]
[1726689840967,0.001642,59930.0,59925.0,0.166872]
[1726689841210,0.001642,59930.0,59917.0,0.0166897]
[1726689841441,0.166897,59917.0,59916.0,0.00854974]
[1726689841676,0.32995067,59917.0,59911.0,0.166913]
[1726689842017,0.16305367,59916.0,59913.0,0.166907]
[1726689842236,0.16305367,59916.0,59897.0,0.333902]
[1726689842237,0.500709,59915.0,59914.0,0.0166907]
[1726689842489,0.16305367,59915.0,59899.0,0.00850926]
[1726689842716,0.16305367,59915.0,59910.0,0.333828]
[1726689842962,1.0012265,59929.0,59924.0,0.166877]
[1726689843207,0.16305367,59927.0,59926.0,0.16687]
[1726689843444,0.16305367,59927.0,59926.0,0.183557]
[1726689843699,0.16305367,59927.0,59926.0,0.016687]
[1726689843950,0.16305367,59927.0,59911.0,0.00863759]
[1726689844197,0.16305367,59927.0,59923.0,0.166878]
[1726689844448,0.16305367,59927.0,59917.0,0.33379]
[1726689844690,0.166873,59926.0,59920.0,0.333773]
[1726689844943,0.16305367,59925.0,59921.0,0.333769]
[1726689845178,0.16305367,59925.0,59920.0,0.333773]
[1726689845179,0.16305367,59925.0,59922.0,0.4005202]
[1726689845429,0.16305367,59925.0,59924.0,0.166878]
[1726689845676,0.00164,59928.0,59927.0,0.333739]
[1726689845907,0.00164,59928.0,59927.0,0.834347]